bitfinex-derivatives/quotes_SOLF0:USTF0_20241203
["timestamp","ask_amount","ask_price","bid_price","bid_amount"]
[1733265934109,2.1274,234.86,234.85,6.68258332]
[1733265939513,9.5879,234.97,234.85,6.68258332]
[1733265939709,9.5879,234.97,234.9,6.68258332]
[1733265940918,2.1268,234.91,234.9,6.68258332]
[1733265941720,2.1272,234.88,234.82,4.9676]
[1733265941915,5.3351,234.97,234.87,6.68258332]
[1733265942113,5.3351,234.97,234.91,6.68258332]
[1733265942317,5.3351,234.97,234.91,0.4135078]
[1733265942713,2.1267,234.92,234.91,0.4135078]
[1733265945925,2.1271,234.88,234.83,2.1275]
[1733265946122,2.1271,234.88,234.87,6.68258332]
[1733265946823,2.1271,234.88,234.83,2.1275]
[1733265947025,2.1271,234.88,234.87,6.68258332]
[1733265949426,2.6712,234.97,234.87,6.68258332]
[1733265949622,2.6712,234.97,234.92,6.68258332]
[1733265949823,2.6712,234.97,234.95,6.68258332]
[1733265950421,22.09092776,234.98,234.95,6.68258332]
[1733265950422,2.1264,234.96,234.95,6.68258332]
[1733265951922,2.1263,234.97,234.95,6.68258332]
[1733265952131,2.1263,234.97,234.96,6.68258332]
[1733265953220,2.1262,234.98,234.96,6.68258332]
[1733265954227,2.08026534,235.13,234.96,6.68258332]
[1733265954228,4.2489,235.18,234.96,9.50258332]
[1733265954531,6.68258332,235.15,235.07,6.68258332]
[1733265954721,7.817,235.17,235.07,6.68258332]
[1733265954722,2.1253,235.08,235.07,6.68258332]
[1733265954922,7.817,235.17,235.03,2.82]
[1733265955124,7.817,235.17,235.07,6.68258332]
[1733265955321,7.817,235.17,235.03,2.82]
[1733265955322,2.1251,235.1,235.09,6.68258332]
[1733265956229,7.817,235.17,235.09,6.68258332]
[1733265956429,7.817,235.17,235.03,2.82]
[1733265956430,7.817,235.17,235.13,6.68258332]
[1733265956631,5.2697,235.17,235.13,6.68258332]
[1733265956828,6.68258332,235.24,235.15,6.68258332]
[1733265957332,6.68258332,235.24,235.1,2.82]
[1733265957333,2.1248,235.14,235.1,2.82]
[1733265957539,9.32758332,235.24,235.13,6.68258332]
[1733265957826,9.32758332,235.24,235.1,2.82]
[1733265957827,2.645,235.24,235.15,6.68258332]
[1733265958530,2.645,235.24,235.17,6.68258332]
[1733265959434,2.1244,235.18,235.17,6.68258332]
[1733265960333,34.51789555,235.3,235.17,9.50258332]
[1733265960534,34.51789555,235.3,235.23,6.68258332]
[1733265962026,2.1238,235.25,235.23,6.68258332]
[1733265962628,34.51789555,235.3,235.23,6.68258332]
[1733265962833,2.1236,235.27,235.26,6.68258332]
[1733265964333,2.1235,235.28,235.26,6.68258332]
[1733265971739,2.1236,235.27,235.26,6.68258332]
[1733265974038,6.68258332,235.34,235.21,2.82]
[1733265974239,6.68258332,235.34,235.26,6.68258332]
[1733265975642,2.1236,235.27,235.26,6.68258332]
[1733265976143,6.68258332,235.34,235.24,6.68258332]
[1733265976744,6.68258332,235.32,235.14,7.9632]
[1733265976940,6.68258332,235.32,235.24,6.68258332]
[1733265977340,2.82,235.33,235.17,2.82]
[1733265977341,2.1238,235.25,235.17,2.82]
[1733265977533,2.82,235.33,235.24,6.68258332]
[1733265977837,6.68258332,235.3,235.2,6.68258332]
[1733265978036,5.228,235.29,235.2,6.68258332]
[1733265978243,5.228,235.29,235.14,2.82]
[1733265978542,5.228,235.29,234.93,1.17002826]
[1733265978543,6.68258332,235.15,235.05,6.68258332]
[1733265978839,10.7606,235.14,235.05,6.68258332]
[1733265979138,2.1255,235.06,235.05,6.68258332]
[1733265979437,10.7606,235.14,234.95,2.82]
[1733265979638,10.7606,235.14,234.95,2.1265]
[1733265979639,2.1255,235.06,234.95,2.1265]
[1733265979839,19.45331974,235.12,235.04,6.68258332]
[1733265980142,26.13590306,235.12,235.04,6.68258332]
[1733265980441,2.1255,235.06,235.04,6.68258332]
[1733265981538,26.13590306,235.12,234.94,2.1265]
[1733265981739,26.13590306,235.12,235.02,6.68258332]
[1733265981740,2.1258,235.03,235.02,6.68258332]
[1733265992146,19.45331974,235.12,235.02,6.68258332]
[1733265992345,19.45331974,235.12,234.93,2.7166]
[1733265992346,22.27331974,235.12,235.08,6.68258332]
[1733265992547,22.27331974,235.12,235.06,6.68258332]
[1733265992845,19.45331974,235.12,235.06,6.68258332]
[1733265993040,2.82,235.11,235.08,6.68258332]
[1733265993238,2.1252,235.09,235.08,6.68258332]
[1733265995646,19.45331974,235.12,235.08,6.68258332]
[1733265995947,19.45331974,235.12,235.1,6.68258332]
[1733265996144,2.125,235.11,235.1,6.68258332]
[1733265996339,2.82,235.16,235.1,6.68258332]
[1733265996540,2.82,235.16,235.13,6.68258332]
[1733265996739,6.68258332,235.22,235.13,6.68258332]
[1733265996943,2.82,235.21,235.13,6.68258332]
[1733265997445,2.1243,235.2,235.13,6.68258332]
[1733265997646,2.82,235.2,235.13,6.68258332]
[1733265997845,6.68258332,235.23,235.13,6.68258332]
[1733265998049,2.82,235.22,235.13,6.68258332]
[1733265999043,2.1247,235.14,235.13,6.68258332]
[1733265999640,2.82,235.22,235.13,6.68258332]
[1733265999641,2.1245,235.17,235.13,6.68258332]
[1733265999846,2.82,235.22,235.16,6.68258332]
[1733266000250,5.4514,235.24,235.16,6.68258332]
[1733266000953,2.1245,235.17,235.16,6.68258332]
[1733266004152,5.4514,235.24,235.16,6.68258332]
[1733266004348,2.1245,235.17,235.16,6.68258332]
[1733266007548,2.124,235.23,235.16,6.68258332]
[1733266007747,2.82,235.25,235.18,6.68258332]
[1733266009051,2.1243,235.2,235.18,6.68258332]
[1733266012063,2.82,235.25,235.12,2.6447]
[1733266012064,2.1245,235.17,235.12,2.6447]
[1733266012257,2.82,235.25,235.12,2.6447]
[1733266012560,2.82,235.25,235.14,2.1247]
[1733266012561,2.1242,235.21,235.14,2.1247]
[1733266013263,2.124,235.22,235.16,2.1245]
[1733266013563,2.124,235.22,235.2,6.68258332]
[1733266013961,2.124,235.23,235.2,6.68258332]
[1733266014460,2.124,235.23,235.22,6.68258332]
[1733266014662,9.48258332,235.31,235.22,6.68258332]
[1733266016565,2.8,235.31,235.22,6.68258332]
[1733266016764,2.1235,235.29,235.22,6.68258332]
[1733266017071,2.8,235.31,235.22,6.68258332]
[1733266017269,14.40238332,235.32,235.22,6.68258332]
[1733266018064,2.1236,235.27,235.22,6.68258332]
[1733266019874,2.1234,235.29,235.22,6.68258332]
[1733266020069,7.7198,235.32,235.22,6.68258332]
[1733266020372,2.5421,235.32,235.22,6.68258332]
[1733266020569,2.1236,235.27,235.22,6.68258332]
[1733266021574,2.1237,235.26,235.22,6.68258332]
[1733266021870,2.1237,235.26,235.24,6.68258332]
[1733266024569,2.1236,235.27,235.24,6.68258332]
[1733266026572,2.1237,235.26,235.24,6.68258332]
[1733266027570,2.1237,235.26,235.12,4.72712433]
[1733266027776,2.1237,235.26,235.24,6.68258332]
[1733266031682,2.1237,235.26,235.2,4.9242]
[1733266032083,2.1237,235.26,235.24,6.68258332]
[1733266032684,2.8,235.35,235.24,6.68258332]
[1733266032685,2.1236,235.28,235.24,6.68258332]
[1733266032880,2.8,235.35,235.26,6.68258332]
[1733266033487,2.1236,235.27,235.26,6.68258332]
[1733266038686,2.1238,235.26,235.25,6.68258332]
[1733266040093,2.1236,235.27,235.25,6.68258332]
[1733266044788,2.1236,235.27,235.25,2.91576405]
[1733266045196,2.1236,235.27,235.21,4.75]
[1733266045388,2.1236,235.27,235.26,6.68258332]
[1733266045788,2.1238,235.25,235.19,2.1243]
[1733266045989,2.1238,235.25,235.23,6.68258332]
[1733266047296,2.1238,235.24,235.23,6.68258332]
[1733266048796,2.78,235.33,235.16,2.78]
[1733266049095,6.68258332,235.31,235.22,6.68258332]
[1733266049301,2.1239,235.23,235.22,6.68258332]
[1733266049600,2.1239,235.23,235.13,2.5492]
[1733266049601,2.78,235.26,235.13,2.5492]
[1733266049900,2.78,235.26,234.96,44.24]
[1733266050095,14.38448332,235.25,235.09,5.4369]
[1733266050292,14.38448332,235.25,235.15,6.68258332]
[1733266050493,2.1246,235.16,235.15,6.68258332]
[1733266051898,2.1243,235.2,235.14,6.68258332]
[1733266052099,6.68258332,235.24,235.08,2.556]
[1733266052401,6.68258332,235.22,235.14,6.68258332]
[1733266052900,2.1247,235.15,235.14,6.68258332]
[1733266054099,6.68258332,235.22,235.06,2.78]
[1733266054307,2.125,235.11,235.06,2.78]
[1733266055503,2.125,235.11,235.04,2.1256]
[1733266055705,2.125,235.11,235.1,6.68258332]
[1733266056106,2.1249,235.13,235.1,6.68258332]
[1733266056306,2.1249,235.13,235.12,6.68258332]
[1733266059411,2.1248,235.13,235.12,6.68258332]
[1733266060209,2.1248,235.13,235.06,2.1254]
[1733266060413,2.1248,235.13,235.12,6.68258332]
[1733266062416,2.78,235.19,235.12,6.68258332]
[1733266062619,2.1248,235.14,235.12,6.68258332]
[1733266063215,2.78,235.21,235.03,5.2991]
[1733266063411,2.78,235.21,235.12,6.68258332]
[1733266063412,6.68258332,235.2,235.12,6.68258332]
[1733266063711,6.68258332,235.2,235.04,2.1256]
[1733266063912,6.68258332,235.2,235.1,6.68258332]
[1733266065015,2.125,235.11,235.1,6.68258332]
[1733266066019,2.1251,235.1,235.09,6.68258332]
[1733266066221,2.1251,235.1,235.03,2.1257]
[1733266066519,2.1251,235.1,235.09,6.68258332]
[1733266067019,2.1249,235.12,235.09,6.68258332]
[1733266067915,2.1249,235.12,235.05,2.1255]
[1733266068110,2.78,235.17,235.1,6.68258332]
[1733266068309,2.1249,235.13,235.1,6.68258332]
[1733266069215,2.1249,235.13,235.06,2.1254]
[1733266069422,2.1249,235.13,235.11,6.68258332]
[1733266070522,2.78,235.17,235.11,6.68258332]
[1733266070716,9.46258332,235.17,235.02,4.9058]
[1733266070916,5.4122,235.16,235.06,6.68258332]
[1733266071220,5.4122,235.16,234.99,2.6378]
[1733266071221,8.0665,235.16,234.99,2.6378]
[1733266071417,6.68258332,235.14,235.04,6.68258332]
[1733266072025,2.1255,235.06,235.04,6.68258332]
[1733266072226,2.1255,235.06,234.99,4.7638]
[1733266072422,8.0665,235.16,235.04,6.68258332]
[1733266072623,6.68258332,235.14,235.04,6.68258332]
[1733266073322,2.1255,235.06,235.04,6.68258332]
[1733266074724,6.68258332,235.14,234.97,5.466]
[1733266074725,2.1258,235.03,234.97,5.466]
[1733266074922,2.1258,235.03,235.02,6.68258332]
[1733266078123,2.1258,235.03,234.97,7.5922]
[1733266078325,2.1258,235.03,235.02,6.68258332]
[1733266081420,2.1259,235.02,234.96,2.1263]
[1733266081623,2.1259,235.02,235.0,6.68258332]
[1733266084531,2.1258,235.03,235.0,6.68258332]
[1733266085429,2.1257,235.03,235.0,6.68258332]
[1733266085832,2.1257,235.03,234.93,2.76]
[1733266086133,2.1257,235.04,235.02,6.68258332]
[1733266086326,2.76,235.1,235.02,6.68258332]
[1733266086829,2.1255,235.07,235.02,6.68258332]
[1733266087427,2.1255,235.07,234.93,2.76]
[1733266087727,2.1255,235.07,235.04,6.68258332]
[1733266090829,5.4122,235.16,235.04,6.68258332]
[1733266091032,5.4122,235.16,235.08,6.68258332]
[1733266091425,2.1247,235.15,235.08,8.80788332]
[1733266092241,2.1247,235.15,235.08,2.1253]
[1733266092435,2.1247,235.15,235.09,6.68258332]
[1733266093935,2.1247,235.15,235.08,2.1253]
[1733266094131,2.1247,235.15,235.08,8.80788332]
[1733266094434,2.1246,235.16,235.09,2.1252]
[1733266095930,2.1247,235.15,235.08,8.80788332]
[1733266096539,2.1246,235.16,235.09,2.1251]
[1733266096732,2.1246,235.16,235.08,6.68258332]
[1733266097039,33.52338073,236.64,235.15,2.1247]
[1733266097040,2.76,235.27,235.15,2.1247]
[1733266097336,5.0588,235.29,235.15,2.1247]
[1733266097541,2.124,235.23,235.15,2.1247]
[1733266097735,2.76,235.28,235.16,2.1246]
[1733266097935,6.68258332,235.26,235.14,6.68258332]
[1733266098431,2.1239,235.24,235.16,6.68258332]
[1733266098840,2.1238,235.25,235.18,2.1244]
[1733266099235,6.68258332,235.26,235.16,2.76]
[1733266099438,2.76,235.25,234.93,4.62755189]
[1733266099742,6.68258332,235.14,235.02,6.68258332]
[1733266099942,6.68258332,235.12,235.02,6.68258332]
[1733266100238,2.10585046,235.25,235.02,6.68258332]
[1733266100434,4.2471,235.28,235.02,6.68258332]
[1733266100435,6.68258332,235.15,235.02,6.68258332]
[1733266100636,6.68258332,235.15,235.03,2.501]
[1733266100637,9.44258332,235.15,235.03,2.501]
[1733266101035,6.68258332,235.14,235.03,2.501]
[1733266101438,2.1247,235.15,235.03,2.501]
[1733266101739,2.76,235.14,235.03,2.501]
[1733266102140,2.1251,235.11,235.03,2.501]
[1733266103136,2.125,235.11,235.04,2.4485]
[1733266103335,2.125,235.11,235.05,6.68258332]
[1733266105543,9.44258332,235.17,235.05,6.68258332]
[1733266106640,9.44258332,235.17,235.08,6.68258332]
[1733266107744,2.76,235.17,235.08,6.68258332]
[1733266109046,2.1249,235.12,235.08,6.68258332]
[1733266109246,2.76,235.17,235.04,5.0599]
[1733266109442,2.76,235.17,235.05,2.1256]
[1733266109642,2.76,235.17,235.08,6.68258332]
[1733266111247,2.76,235.17,235.06,2.1254]
[1733266111551,2.1248,235.14,235.1,6.68258332]
[1733266111755,2.1248,235.14,235.07,2.1253]
[1733266111756,2.4535,235.2,235.13,6.68258332]
[1733266112050,2.4535,235.2,235.07,2.76]
[1733266112051,2.76,235.23,235.14,6.68258332]
[1733266112447,2.76,235.23,235.11,2.6855]
[1733266112644,6.68258332,235.24,235.13,6.68258332]
[1733266112847,2.76,235.25,235.15,6.68258332]
[1733266113054,2.1241,235.22,235.15,6.68258332]
[1733266113253,6.68258332,235.24,235.15,6.68258332]
[1733266113546,2.1243,235.2,235.15,6.68258332]
[1733266117653,2.1238,235.24,235.17,6.68258332]
[1733266117855,9.28898332,235.27,235.17,6.68258332]
[1733266118052,2.76,235.31,235.15,2.6179]
[1733266118249,6.68258332,235.29,235.18,8.80698332]
[1733266118453,6.68258332,235.29,235.19,2.6649]
[1733266118755,2.1238,235.25,235.19,2.6649]
[1733266120254,2.1238,235.25,235.19,4.7891]
[1733266120450,6.68258332,235.29,235.19,2.6649]
[1733266120657,2.76,235.32,235.19,4.7892]
[1733266120857,6.68258332,235.28,235.2,6.68258332]
[1733266121457,2.1237,235.26,235.2,8.80678332]
[1733266121758,6.68258332,235.28,235.2,8.80678332]
[1733266122854,2.4968,235.34,235.21,2.1241]
[1733266123057,6.68258332,235.3,235.21,2.1241]
[1733266123652,2.4968,235.34,235.21,2.1241]
[1733266123858,6.68258332,235.3,235.21,2.1241]
[1733266124260,2.1237,235.27,235.22,2.124]
[1733266124862,2.1233,235.31,235.22,2.124]
[1733266125062,6.68258332,235.32,235.22,8.80658332]
[1733266125255,6.68258332,235.32,235.23,2.1239]
[1733266126068,2.1234,235.29,235.23,2.1239]
[1733266126566,2.1235,235.28,235.22,2.124]
[1733266126766,2.1235,235.28,235.23,6.68258332]
[1733266126961,4.2447,235.42,235.23,6.68258332]
[1733266127267,4.2447,235.42,235.24,2.5513]
[1733266127268,6.68258332,235.33,235.24,2.5513]
[1733266128062,2.1235,235.29,235.24,2.5513]
[1733266128457,2.1235,235.29,235.25,6.68258332]
[1733266129059,2.1235,235.29,235.24,2.5513]
[1733266129260,6.68258332,235.34,235.25,6.68258332]
[1733266129468,2.1235,235.28,235.25,6.68258332]
[1733266129862,6.68258332,235.34,235.24,2.5513]
[1733266130267,2.7038,235.41,235.24,9.23388332]
[1733266130469,6.68258332,235.35,235.26,6.68258332]
[1733266131368,2.1234,235.3,235.26,6.68258332]
[1733266131972,2.1234,235.3,235.24,11.35768332]
[1733266132766,2.1234,235.29,235.24,9.23388332]
[1733266135362,2.1235,235.28,235.24,9.23388332]
[1733266136972,2.1235,235.28,235.26,6.68258332]
[1733266137369,2.1235,235.28,235.24,9.23388332]
[1733266138268,6.68258332,235.33,235.24,9.23388332]
[1733266138469,2.1236,235.27,235.24,9.23388332]
[1733266139073,6.68258332,235.33,235.24,2.5513]
[1733266139271,6.68258332,235.33,235.24,5.2913]
[1733266139473,2.1238,235.25,235.24,5.2913]
[1733266141369,2.1238,235.25,235.24,2.5513]
[1733266142572,2.1238,235.25,235.24,5.2913]
[1733266142771,2.1237,235.26,235.24,5.2913]
[1733266142970,6.68258332,235.36,235.25,6.68258332]
[1733266143173,6.68258332,235.36,235.27,6.68258332]
[1733266143381,6.68258332,235.34,235.25,6.68258332]
[1733266143577,2.1232,235.32,235.25,6.68258332]
[1733266143774,6.68258332,235.34,235.25,6.68258332]
[1733266145172,2.1234,235.3,235.25,6.68258332]
[1733266147377,2.1234,235.29,235.25,6.68258332]
[1733266148887,2.1233,235.3,235.25,8.80628332]
[1733266149190,4.2455,235.37,235.25,8.80628332]
[1733266149191,6.68258332,235.35,235.25,8.80628332]
[1733266149789,2.1234,235.29,235.25,6.68258332]
[1733266150485,2.1234,235.29,235.24,7.4151]
[1733266150486,2.1234,235.29,235.27,6.68258332]
[1733266150689,6.68258332,235.35,235.25,6.68258332]
[1733266150690,2.1231,235.32,235.25,6.68258332]
[1733266150890,6.68258332,235.35,235.25,6.68258332]
[1733266151393,2.1235,235.29,235.25,6.68258332]
[1733266151894,6.68258332,235.36,235.24,7.4151]
[1733266152094,2.123,235.33,235.26,6.68258332]
[1733266152393,6.68258332,235.36,235.26,6.68258332]
[1733266152589,4.2455,235.37,235.26,6.68258332]
[1733266152789,6.68258332,235.36,235.26,6.68258332]
[1733266153193,6.68258332,235.36,235.24,5.2913]
[1733266153388,2.1236,235.28,235.25,6.68258332]
[1733266153991,2.1234,235.3,235.25,8.80638332]
[1733266154790,2.1234,235.3,235.25,11.54638332]
[1733266155296,2.1234,235.3,235.26,2.1236]
[1733266155693,2.1234,235.3,235.29,6.68258332]
[1733266156898,4.2445,235.42,235.29,6.68258332]
[1733266157099,6.68258332,235.38,235.26,2.1236]
[1733266157395,6.68258332,235.38,235.28,6.68258332]
[1733266157396,2.1229,235.35,235.28,6.68258332]
[1733266157590,6.68258332,235.38,235.3,6.68258332]
[1733266158199,2.1228,235.36,235.3,6.68258332]
[1733266158497,6.68258332,235.38,235.3,6.68258332]
[1733266158698,2.1232,235.32,235.3,6.68258332]
[1733266159194,6.68258332,235.38,235.3,6.68258332]
[1733266159393,10.6844,235.42,235.3,6.68258332]
[1733266159593,6.68258332,235.4,235.3,6.68258332]
[1733266160002,2.123,235.34,235.3,6.68258332]
[1733266162807,2.1229,235.35,235.3,6.68258332]
[1733266163603,2.1229,235.35,235.32,6.68258332]
[1733266163804,10.92708332,235.42,235.32,6.68258332]
[1733266164401,2.1229,235.35,235.34,6.68258332]
[1733266167202,5.2469,235.45,235.34,6.68258332]
[1733266167203,2.1227,235.37,235.34,6.68258332]
[1733266167408,2.1227,235.37,235.36,6.68258332]
[1733266167703,2.1227,235.37,235.36,3.01811623]
[1733266167907,2.1227,235.37,235.31,2.1232]
[1733266168102,2.1227,235.37,235.36,6.68258332]
[1733266169001,6.68258332,235.44,235.36,6.68258332]
[1733266169002,2.1227,235.38,235.36,6.68258332]
[1733266172812,2.1225,235.39,235.36,6.68258332]
[1733266173808,2.1222,235.43,235.38,6.68258332]
[1733266174009,2.1222,235.43,235.4,6.68258332]
[1733266174509,2.5269,235.45,235.4,6.68258332]
[1733266174510,4.6489,235.45,235.4,6.68258332]
[1733266174704,17.49589284,235.49,235.4,6.68258332]
[1733266175106,17.49589284,235.49,235.42,6.68258332]
[1733266175713,2.1218,235.47,235.42,6.68258332]
[1733266175913,17.49589284,235.49,235.44,6.68258332]
[1733266176108,17.49589284,235.49,235.46,6.68258332]
[1733266176508,19.61759284,235.49,235.46,6.68258332]
[1733266176715,17.49589284,235.49,235.46,6.68258332]
[1733266179114,6.68258332,235.56,235.46,6.68258332]
[1733266180121,2.1215,235.51,235.46,6.68258332]
[1733266180821,2.1215,235.51,235.45,2.72]
[1733266181015,6.68258332,235.57,235.45,2.72]
[1733266181217,2.72,235.61,235.47,6.68258332]
[1733266181522,6.68258332,235.6,235.5,6.68258332]
[1733266181717,2.1212,235.54,235.46,4.3475]
[1733266181919,6.68258332,235.6,235.51,6.68258332]
[1733266182223,6.68258332,235.6,235.46,4.3475]
[1733266182224,6.68258332,235.6,235.46,2.2257]
[1733266182521,6.68258332,235.6,235.49,6.68258332]
[1733266182723,6.68258332,235.6,235.46,2.2257]
[1733266182724,6.68258332,235.6,235.52,6.68258332]
[1733266183221,6.68258332,235.6,235.46,2.2257]
[1733266183525,6.68258332,235.6,235.51,6.68258332]
[1733266183914,2.1211,235.54,235.51,6.68258332]
[1733266184517,2.72,235.64,235.51,6.68258332]
[1733266184722,2.1211,235.55,235.48,2.1217]
[1733266184922,2.1211,235.55,235.52,6.68258332]
[1733266185925,6.8865,235.66,235.54,6.68258332]
[1733266186218,6.68258332,235.63,235.51,2.72]
[1733266186424,6.68258332,235.63,235.53,6.68258332]
[1733266186917,2.1209,235.57,235.53,6.68258332]
[1733266187114,6.68258332,235.63,235.51,2.72]
[1733266187318,6.68258332,235.61,235.51,9.40258332]
[1733266187915,2.1211,235.55,235.51,9.40258332]
[1733266188620,2.121,235.56,235.51,9.40258332]
[1733266188817,6.68258332,235.61,235.51,9.40258332]
[1733266189024,2.121,235.56,235.51,9.40258332]
[1733266189227,6.68258332,235.61,235.51,9.40258332]
[1733266189426,6.68258332,235.61,235.53,6.68258332]
[1733266189630,2.1211,235.55,235.53,6.68258332]
[1733266190727,2.1211,235.55,235.51,2.72]
[1733266191025,6.68258332,235.62,235.52,6.68258332]
[1733266191228,6.8865,235.66,235.52,6.68258332]
[1733266191428,6.68258332,235.63,235.52,6.68258332]
[1733266191631,2.1209,235.57,235.52,6.68258332]
[1733266192427,6.68258332,235.63,235.52,6.68258332]
[1733266192728,2.121,235.56,235.52,6.68258332]
[1733266192927,6.68258332,235.64,235.54,6.68258332]
[1733266194128,6.68258332,235.64,235.55,6.68258332]
[1733266194733,2.1209,235.57,235.55,6.68258332]
[1733266195025,6.68258332,235.62,235.33,1.69851192]
[1733266195230,6.68258332,235.62,235.32,4.2462]
[1733266195231,2.1212,235.54,235.47,2.72]
[1733266195530,2.1212,235.54,235.52,6.68258332]
[1733266195832,2.1212,235.53,235.52,6.68258332]
[1733266196828,2.1215,235.51,235.49,2.72]
[1733266197034,2.1215,235.51,235.5,6.68258332]
[1733266197834,2.1215,235.51,235.49,2.72]
[1733266198033,6.68258332,235.59,235.49,9.40258332]
[1733266198236,2.1215,235.5,235.49,9.40258332]
[1733266198633,2.1215,235.5,235.49,6.68258332]
[1733266199838,6.68258332,235.55,235.4,4.2306]
[1733266200139,6.68258332,235.55,235.4,4.5009]
[1733266200332,6.68258332,235.52,235.4,2.3786]
[1733266200532,6.68258332,235.52,235.42,6.68258332]
[1733266200927,2.1221,235.43,235.42,6.68258332]
[1733266201631,6.68258332,235.5,235.4,6.68258332]
[1733266201632,2.1223,235.41,235.4,6.68258332]
[1733266202628,2.72,235.53,235.4,6.68258332]
[1733266202833,2.1217,235.48,235.46,6.68258332]
[1733266203034,2.72,235.55,235.46,6.68258332]
[1733266203236,2.72,235.55,235.48,6.68258332]
[1733266203537,2.72,235.55,235.34,2.1601]
[1733266203538,2.1215,235.5,235.47,6.68258332]
[1733266203734,2.72,235.55,235.47,6.68258332]
[1733266203935,2.1214,235.51,235.47,6.68258332]
[1733266204339,2.72,235.55,235.47,6.68258332]
[1733266204638,2.1214,235.52,235.47,6.68258332]
[1733266205345,2.1214,235.52,235.49,6.68258332]
[1733266206034,2.1212,235.54,235.49,6.68258332]
[1733266206343,6.68258332,235.59,235.43,2.1842]
[1733266206642,6.68258332,235.59,235.49,6.68258332]
[1733266207935,2.1212,235.54,235.51,6.68258332]
[1733266208738,2.121,235.56,235.51,6.68258332]
[1733266209042,4.8994,235.6,235.51,6.68258332]
[1733266209043,2.72,235.6,235.51,6.68258332]
[1733266209643,2.72,235.6,235.47,2.1218]
[1733266209838,2.72,235.6,235.51,6.68258332]
[1733266210140,2.1212,235.54,235.51,6.68258332]
[1733266211045,2.1212,235.54,235.44,1.9366]
[1733266211046,6.68258332,235.65,235.53,6.68258332]
[1733266211346,6.68258332,235.65,235.56,6.68258332]
[1733266211745,2.1206,235.61,235.56,6.68258332]
[1733266213447,2.1204,235.62,235.56,6.68258332]
[1733266213948,2.1206,235.6,235.56,6.68258332]
[1733266215240,2.1206,235.6,235.55,2.72]
[1733266215651,2.1206,235.6,235.57,6.68258332]
[1733266215843,6.68258332,235.66,235.55,2.72]
[1733266216043,6.68258332,235.66,235.55,9.40258332]
[1733266217048,2.1204,235.63,235.55,9.40258332]
[1733266217249,6.68258332,235.66,235.55,9.40258332]
[1733266217852,6.68258332,235.66,235.57,6.68258332]
[1733266218253,2.1206,235.6,235.57,6.68258332]
[1733266218555,6.68258332,235.66,235.57,6.68258332]
[1733266218955,2.1205,235.62,235.57,6.68258332]
[1733266219149,6.68258332,235.66,235.57,6.68258332]
[1733266219653,2.1204,235.62,235.57,6.68258332]
[1733266220048,6.68258332,235.66,235.57,6.68258332]
[1733266220457,2.1206,235.61,235.57,6.68258332]
[1733266221652,2.1207,235.6,235.57,6.68258332]
[1733266222253,2.1205,235.61,235.55,9.38258332]
[1733266222649,1.2577,235.7,235.55,9.38258332]
[1733266222650,6.68258332,235.66,235.55,2.7]
[1733266222846,2.1208,235.59,235.55,9.38258332]
[1733266223049,2.1208,235.59,235.55,6.68258332]
[1733266223554,3.9577,235.7,235.55,6.68258332]
[1733266224054,6.68258332,235.65,235.55,6.68258332]
[1733266224256,2.1206,235.61,235.55,6.68258332]
[1733266224652,6.68258332,235.65,235.55,6.68258332]
[1733266225357,2.1207,235.6,235.55,6.68258332]
[1733266225558,3.9577,235.7,235.58,6.68258332]
[1733266225559,1.2577,235.7,235.58,6.68258332]
[1733266225858,2.1202,235.65,235.62,6.68258332]
[1733266226354,6.68258332,235.71,235.62,6.68258332]
[1733266226555,6.68258332,235.71,235.59,2.7]
[1733266226755,2.1202,235.65,235.59,2.7]
[1733266226951,2.1202,235.65,235.62,6.68258332]
[1733266227354,2.1202,235.65,235.61,6.68258332]
[1733266227555,2.1202,235.65,235.44,1.06123909]
[1733266227556,2.1207,235.59,235.35,4.61393046]
[1733266227751,9.38258332,235.68,235.58,6.68258332]
[1733266227956,16.64409598,235.73,235.6,6.68258332]
[1733266228155,6.68258332,235.69,235.6,6.68258332]
[1733266228351,2.1201,235.66,235.62,6.68258332]
[1733266229153,9.38258332,235.71,235.62,6.68258332]
[1733266229354,9.38258332,235.71,235.58,2.7]